bitfinex-derivatives/quotes_BTCF0:USTF0_20250803
["timestamp","ask_amount","ask_price","bid_price","bid_amount"]
[1754231141043,1.29569485,113840.0,113830.0,0.45158]
[1754231141754,1.29569485,113840.0,113830.0,0.45458]
[1754231142753,1.29569485,113840.0,113830.0,0.45358]
[1754231143448,1.29569485,113840.0,113830.0,0.45058]
[1754231143646,1.29669485,113840.0,113830.0,0.45058]
[1754231144944,0.6425528,113830.0,113820.0,0.9893889]
[1754231145148,1.20894096,113830.0,113820.0,0.6285889]
[1754231145857,0.66396801,113830.0,113820.0,0.6285889]
[1754231146559,0.66396801,113830.0,113820.0,0.6295889]
[1754231147251,0.02141521,113830.0,113820.0,0.9903889]
[1754231147455,0.5804173,113840.0,113820.0,0.9903889]
[1754231147456,0.6864669,113840.0,113830.0,0.6285828]
[1754231147658,0.7078874,113840.0,113830.0,0.6285828]
[1754231147963,0.80123003,113840.0,113830.0,0.6285828]
[1754231148556,1.34620298,113840.0,113830.0,0.45288]
[1754231150560,1.70700298,113840.0,113830.0,0.45288]
[1754231151359,1.70700298,113840.0,113830.0,0.29902]
[1754231151759,1.70700298,113840.0,113830.0,0.3317]
[1754231151961,0.6425528,113830.0,113820.0,0.9893864]
[1754231152163,1.20894625,113830.0,113820.0,0.9893864]
[1754231152355,1.30593359,113830.0,113820.0,0.9893864]
[1754231152557,1.30593359,113830.0,113820.0,0.81368]
[1754231152757,1.30593359,113830.0,113820.0,0.45288]
[1754231153656,1.30593359,113830.0,113820.0,0.45388]
[1754231153962,1.30593359,113830.0,113820.0,0.18536]
[1754231154260,1.30593359,113830.0,113820.0,0.15268]
[1754231155963,1.66674279,113830.0,113800.0,0.27056451]
[1754231156148,0.1757647,113790.0,113780.0,0.6684015]
[1754231156354,0.4992032,113780.0,113760.0,0.1318533]
[1754231156660,0.1758265,113750.0,113740.0,0.00523034]
[1754231156860,0.6426765,113750.0,113740.0,0.18107234]
[1754231157068,0.74225608,113750.0,113740.0,0.63395234]
[1754231157269,1.28722903,113750.0,113740.0,0.63395234]
[1754231157567,1.10305608,113750.0,113740.0,0.45811034]
[1754231157759,1.28722903,113750.0,113740.0,0.18107234]
[1754231157957,1.67005855,113750.0,113740.0,0.18107234]
[1754231158252,0.5339656,113750.0,113740.0,0.63995234]
[1754231158453,0.10057958,113750.0,113740.0,1.54572529]
[1754231158665,0.001,113750.0,113740.0,1.64030138]
[1754231158861,0.001,113750.0,113740.0,1.00075234]
[1754231159059,0.74261544,113750.0,113740.0,1.00075234]
[1754231159267,0.76458081,113750.0,113740.0,0.63995234]
[1754231159459,0.83345985,113750.0,113740.0,0.63995234]
[1754231160059,0.63566798,113750.0,113740.0,0.63995234]
[1754231160260,0.81149468,113750.0,113740.0,0.49161234]
[1754231160463,0.63666798,113750.0,113740.0,0.64395234]
[1754231160759,0.63566798,113750.0,113740.0,0.63795234]
[1754231160961,0.81149468,113750.0,113740.0,0.64095234]
[1754231161163,0.81049468,113750.0,113740.0,0.63695234]
[1754231161560,0.81149468,113750.0,113740.0,0.63895234]
[1754231162070,0.85159547,113780.0,113770.0,0.3591558]
[1754231162366,0.78980451,113780.0,113770.0,0.6286758]
[1754231162566,0.14717421,113780.0,113770.0,1.62902484]
[1754231162768,0.02194834,113780.0,113770.0,1.62902484]
[1754231163157,0.02171707,113790.0,113780.0,0.6286603]
[1754231163360,0.2196888,113800.0,113790.0,0.6286449]
[1754231163361,0.5303388,113800.0,113790.0,0.6286449]
[1754231163567,0.6865388,113800.0,113790.0,0.6286449]
[1754231164165,1.38139638,113800.0,113790.0,0.5806149]
[1754231164371,1.38139638,113800.0,113790.0,0.6286449]
[1754231164569,0.74184734,113800.0,113790.0,0.6286449]
[1754231164765,0.66777734,113800.0,113790.0,0.1757649]
[1754231165068,1.75119638,113800.0,113790.0,0.1767649]
[1754231165264,1.75119638,113800.0,113790.0,0.001]
[1754231165665,0.51166794,113800.0,113790.0,0.1757649]
[1754231165971,1.12941446,113800.0,113790.0,0.6296449]
[1754231166172,0.59286506,113800.0,113790.0,0.6296449]
[1754231166376,1.7689635,113800.0,113790.0,0.001]
[1754231166671,1.7639635,113800.0,113790.0,0.001]
[1754231166969,1.7639635,113800.0,113790.0,0.002]
[1754231167562,1.7639635,113800.0,113790.0,0.1767648]
[1754231167766,1.7639635,113800.0,113790.0,0.3241048]
[1754231167970,1.12441446,113800.0,113790.0,0.3241048]
[1754231168162,1.12641446,113800.0,113790.0,0.3241048]
[1754231168358,0.12301506,113800.0,113790.0,0.6286448]
[1754231168559,0.02376712,113800.0,113790.0,0.6286448]
[1754231168764,0.02376712,113800.0,113790.0,0.9894448]
[1754231168967,0.06838712,113800.0,113790.0,0.9894448]
[1754231170862,0.22542712,113800.0,113790.0,0.9904448]
[1754231171259,0.65190652,113800.0,113790.0,0.9914448]
[1754231171478,0.47615712,113800.0,113790.0,0.9914448]
[1754231173574,0.40314712,113800.0,113790.0,0.9914448]
[1754231174776,0.57889652,113800.0,113790.0,0.9914448]
[1754231174977,0.40314712,113800.0,113790.0,0.9914448]
[1754231175273,0.42502714,113800.0,113790.0,0.9914448]
[1754231176774,0.12297714,113800.0,113790.0,0.9914448]
[1754231177980,0.29872654,113800.0,113790.0,0.9914448]
[1754231178180,0.12297714,113800.0,113790.0,0.9914448]
[1754231180481,0.29872654,113800.0,113790.0,1.2688848]
[1754231180978,0.12297714,113800.0,113790.0,1.2688848]
[1754231181170,0.29872654,113800.0,113790.0,1.2688848]
[1754231181371,0.29872654,113800.0,113790.0,1.2678848]
[1754231181572,0.29872654,113800.0,113790.0,1.2688848]
[1754231181973,0.04364714,113800.0,113790.0,1.2688848]
[1754231183176,0.04364714,113800.0,113790.0,1.90843384]
[1754231184476,0.21939654,113800.0,113790.0,0.9914448]
[1754231184675,0.26610654,113800.0,113790.0,1.2688048]
[1754231187276,0.09035714,113800.0,113790.0,1.2688048]
[1754231187483,0.21939664,113800.0,113790.0,1.2688048]
[1754231188479,0.21939664,113800.0,113790.0,0.9914448]
[1754231188683,0.67371664,113800.0,113790.0,1.2687648]
[1754231189877,0.34436664,113800.0,113790.0,0.9914448]
[1754231190084,0.29865664,113800.0,113790.0,1.2687248]
[1754231190582,0.45569664,113800.0,113790.0,1.2687248]
[1754231190879,0.55399664,113800.0,113790.0,0.5044748]
[1754231191079,1.67406568,113800.0,113790.0,0.18457]
[1754231191283,1.77532948,113800.0,113790.0,0.002]
[1754231191884,1.95108148,113800.0,113790.0,0.002]
[1754231192082,1.95108148,113800.0,113790.0,0.001]
[1754231192288,1.95108148,113800.0,113790.0,0.002]
[1754231192686,1.77532948,113800.0,113790.0,0.002]
[1754231192888,0.4730449,113790.0,113780.0,1.21604]
[1754231193081,1.65231396,113790.0,113780.0,1.21604]
[1754231193389,1.74879439,113790.0,113780.0,1.21604]
[1754231193584,0.6291158,113770.0,113760.0,0.6257377]
[1754231193792,1.29054486,113770.0,113760.0,0.72718]
[1754231193997,1.10776674,113770.0,113760.0,0.72718]
[1754231194388,1.10776674,113770.0,113750.0,0.307679]
[1754231194389,0.6301312,113760.0,113750.0,0.04524]
[1754231194586,1.65337928,113760.0,113750.0,0.04524]
[1754231194897,1.7498107,113760.0,113750.0,0.04524]
[1754231195280,1.72691166,113760.0,113750.0,0.04524]
[1754231195779,1.74980281,113760.0,113750.0,0.04524]
[1754231195978,1.11025377,113760.0,113750.0,0.19609]
[1754231196383,1.11025377,113760.0,113750.0,0.4453267]
[1754231196589,1.11125377,113760.0,113750.0,0.5491167]
[1754231196890,0.58101245,113760.0,113750.0,0.6267667]
[1754231197591,0.65402245,113760.0,113750.0,0.6267667]
[1754231198888,0.47821115,113760.0,113750.0,0.6267667]
[1754231199585,0.47821115,113760.0,113750.0,0.6277667]
[1754231199984,0.47721115,113760.0,113750.0,0.6267667]
[1754231200191,0.47721115,113760.0,113750.0,0.6277667]
[1754231201386,0.47721115,113760.0,113750.0,0.6267667]
[1754231201589,0.47721115,113760.0,113750.0,0.9875667]
[1754231202185,0.02289115,113760.0,113750.0,0.9875667]
[1754231202392,0.02289115,113760.0,113750.0,1.62711574]
[1754231204391,0.1757967,113770.0,113760.0,0.1758112]
[1754231204594,0.24841972,113770.0,113760.0,1.2712012]
[1754231205600,0.25041972,113770.0,113760.0,1.2712012]
[1754231205794,0.07462302,113770.0,113760.0,1.2712012]
[1754231205998,0.02482302,113770.0,113760.0,1.2712012]
[1754231206590,0.002,113770.0,113760.0,1.91075024]
[1754231206796,0.003,113770.0,113760.0,1.91075024]
[1754231207499,0.002,113770.0,113760.0,1.91075024]
[1754231207803,1.10274652,113800.0,113790.0,0.6331549]
[1754231207994,1.12557411,113800.0,113790.0,0.9102749]
[1754231208195,0.76477411,113800.0,113790.0,0.9102749]
[1754231208898,1.76512315,113800.0,113790.0,0.9102749]
[1754231209706,1.76512315,113800.0,113770.0,0.0439457]
[1754231209707,0.10596,113780.0,113770.0,0.4486938]
[1754231209900,1.63266934,113780.0,113770.0,0.6286589]
[1754231210100,1.65549909,113780.0,113770.0,0.6286589]
[1754231210598,0.65515005,113780.0,113770.0,0.6286589]
[1754231210797,0.65515005,113780.0,113770.0,0.6771189]
[1754231211003,1.01595005,113780.0,113770.0,0.6771189]
[1754231211202,0.65515005,113780.0,113770.0,0.6771189]
[1754231211601,0.65515005,113780.0,113770.0,0.6781189]
[1754231212206,1.01595005,113780.0,113770.0,0.6781189]
[1754231212404,0.65515005,113780.0,113770.0,0.6781189]
[1754231213605,0.65515005,113780.0,113770.0,0.6771189]
[1754231213903,0.65615005,113780.0,113770.0,0.6771189]
[1754231215109,0.65515005,113780.0,113770.0,0.6771189]
[1754231215309,0.65515005,113780.0,113770.0,0.6791189]
[1754231215907,0.65515005,113780.0,113770.0,0.6781189]
[1754231216303,0.65515005,113780.0,113770.0,0.6296589]
[1754231217423,0.65515005,113780.0,113770.0,0.63085799]
[1754231217919,1.65649909,113780.0,113770.0,0.17698229]
[1754231218119,1.74804114,113780.0,113770.0,0.17698229]
[1754231218320,1.74804114,113780.0,113770.0,0.00119909]
[1754231219315,1.74804114,113780.0,113770.0,0.17699489]
[1754231219614,1.74804114,113780.0,113770.0,0.00119909]
[1754231220620,1.74704114,113780.0,113770.0,0.00119909]
[1754231220821,1.74804114,113780.0,113770.0,0.00119909]
[1754231221623,0.6323667,113750.0,113740.0,1.99884774]
[1754231221920,0.45654,113750.0,113740.0,2.12227774]
[1754231222120,0.03288,113750.0,113740.0,2.12227774]
[1754231222324,0.45654,113760.0,113750.0,0.6332167]
[1754231222625,0.6551461,113760.0,113750.0,0.6332167]
[1754231223923,0.4793349,113760.0,113750.0,0.6332167]
[1754231224121,0.4793349,113760.0,113750.0,0.9101367]
[1754231224427,0.4803349,113760.0,113750.0,0.9121367]
[1754231224727,0.4803349,113760.0,113750.0,0.9131367]
[1754231225026,0.6561461,113760.0,113750.0,0.9131367]
[1754231225230,0.6561461,113760.0,113750.0,0.9121367]
[1754231226022,0.0237949,113760.0,113750.0,1.91348574]
[1754231226222,0.0227949,113760.0,113750.0,1.91148574]
[1754231226422,0.6502161,113770.0,113760.0,0.2246912]
[1754231226627,0.74303127,113770.0,113760.0,0.6332012]
[1754231226828,0.84406212,113770.0,113760.0,0.6332012]
[1754231227918,1.20586212,113770.0,113760.0,0.6342012]
[1754231228123,1.48461116,113770.0,113760.0,0.45839]
[1754231228320,1.84541116,113770.0,113760.0,0.6342012]
[1754231228522,1.84541116,113770.0,113760.0,0.001]
[1754231228724,1.20586212,113770.0,113760.0,0.001]
[1754231228934,1.48461116,113770.0,113760.0,0.001]
[1754231229132,1.84541116,113770.0,113760.0,0.001]
[1754231229629,1.84441116,113770.0,113760.0,0.3287913]
[1754231229929,1.84541116,113770.0,113760.0,0.3297913]
[1754231230132,1.84541116,113770.0,113760.0,0.15398]
[1754231230728,1.84541116,113770.0,113760.0,0.3287912]
[1754231231723,1.84541116,113770.0,113760.0,0.3743912]
[1754231231924,1.84541116,113770.0,113760.0,0.26775]
[1754231233533,1.84541116,113770.0,113760.0,0.4435612]
[1754231233730,0.6281512,113760.0,113750.0,0.9863571]
[1754231233940,0.6281667,113750.0,113740.0,1.93906244]
[1754231234233,1.29051042,113750.0,113740.0,1.93906244]
[1754231234434,0.65096138,113750.0,113740.0,0.62686244]
[1754231234632,0.65096138,113750.0,113740.0,0.90370244]
[1754231235130,0.74965374,113750.0,113740.0,0.85584244]
[1754231235635,0.74964736,113750.0,113740.0,0.85584244]
[1754231235835,1.3871964,113750.0,113740.0,0.85584244]
[1754231236336,1.3871964,113750.0,113740.0,0.90470244]
[1754231236543,0.74764736,113750.0,113740.0,0.90470244]
[1754231236732,0.52657736,113750.0,113740.0,0.90570244]
[1754231236932,0.576905,113750.0,113740.0,0.90570244]
[1754231237436,0.648955,113750.0,113740.0,0.90470244]
[1754231237629,0.648955,113750.0,113740.0,0.90570244]
[1754231238830,0.648955,113750.0,113740.0,0.90470244]
[1754231239028,0.648955,113750.0,113740.0,0.90570244]
[1754231239836,0.648955,113750.0,113740.0,0.90470244]
[1754231240037,0.649955,113750.0,113740.0,0.90370244]
[1754231242239,0.649955,113750.0,113740.0,0.90470244]
[1754231245937,0.649955,113750.0,113740.0,1.26550244]
[1754231246242,0.149955,113750.0,113740.0,1.26550244]
[1754231246546,1.05145978,113750.0,113740.0,0.90470244]
[1754231247640,1.05145978,113750.0,113740.0,0.90570244]
[1754231248342,1.09252978,113750.0,113740.0,0.90570244]
[1754231249043,1.09252978,113750.0,113740.0,0.90470244]
[1754231249242,1.05145978,113750.0,113740.0,0.83553244]
[1754231249430,1.09252978,113750.0,113740.0,0.83553244]
[1754231249635,1.09252978,113750.0,113740.0,0.90470244]
[1754231250140,0.65096245,113750.0,113740.0,0.90470244]
[1754231250932,1.19686978,113750.0,113740.0,0.90470244]
[1754231251343,1.19586978,113750.0,113740.0,0.90370244]
[1754231251643,1.19686978,113750.0,113740.0,0.90470244]
[1754231257241,1.26900018,113750.0,113740.0,0.90470244]
[1754231259253,1.26900018,113750.0,113740.0,0.62786244]
[1754231264657,0.72309285,113750.0,113740.0,0.62786244]
[1754231264856,1.26900018,113750.0,113740.0,0.62786244]
[1754231267360,0.72309285,113750.0,113740.0,0.62786244]
[1754231267560,1.26900018,113750.0,113740.0,0.62786244]
[1754231269060,1.26900018,113750.0,113740.0,0.62675244]
[1754231269465,1.22793018,113750.0,113740.0,0.00623034]
[1754231269663,1.62980018,113750.0,113740.0,0.00623034]
[1754231271458,1.62980018,113750.0,113740.0,0.00523034]
[1754231272566,1.80663219,113750.0,113740.0,0.00523034]
[1754231273174,0.2252774,113730.0,113720.0,1.7618635]
[1754231273367,1.19177799,113730.0,113720.0,1.9769635]
[1754231273672,1.28890224,113730.0,113720.0,1.9769635]
[1754231273867,1.28890224,113730.0,113720.0,0.6610335]
[1754231274871,0.74299491,113730.0,113720.0,0.6610335]
[1754231275071,1.28890224,113730.0,113720.0,0.6610335]
[1754231276074,1.28990224,113730.0,113720.0,0.6610335]
[1754231276471,1.28990224,113730.0,113720.0,0.2261]
[1754231276670,1.28990224,113730.0,113720.0,0.4019728]
[1754231276867,1.28990224,113730.0,113720.0,0.5450228]
[1754231277068,1.28990224,113730.0,113720.0,0.4412]
[1754231277276,1.28990224,113730.0,113720.0,0.6170729]
[1754231277668,1.28990224,113730.0,113720.0,0.4412]
[1754231277868,1.28990224,113730.0,113720.0,0.6170729]
[1754231278468,1.3110437,113730.0,113720.0,0.6170729]
[1754231278874,1.3100437,113730.0,113720.0,0.4412]
[1754231279077,1.3110437,113730.0,113720.0,0.4412]
[1754231279276,1.3110437,113730.0,113720.0,0.44239938]
[1754231279980,1.6718437,113730.0,113720.0,0.05042938]
[1754231280377,1.6718437,113730.0,113720.0,0.22432938]
[1754231280575,1.6718437,113730.0,113720.0,0.37034938]
[1754231280771,1.6718437,113730.0,113720.0,0.12115938]
[1754231280975,1.6718437,113730.0,113720.0,0.00119938]
[1754231281373,1.6708437,113730.0,113720.0,0.00119938]
[1754231281673,1.6718437,113730.0,113720.0,0.00119938]
[1754231281875,1.6718437,113730.0,113720.0,0.05042938]
[1754231282672,1.6708437,113730.0,113720.0,0.05042938]
[1754231282876,1.6718437,113730.0,113720.0,0.05042938]
[1754231283683,1.6738437,113730.0,113720.0,0.05042938]
[1754231284179,1.6728437,113730.0,113720.0,0.05042938]
[1754231284584,1.6718437,113730.0,113720.0,0.05042938]
[1754231284780,1.6728437,113730.0,113720.0,0.05042938]
[1754231285489,1.6728437,113730.0,113720.0,0.00119938]
[1754231287383,1.6748437,113730.0,113720.0,0.00119938]
[1754231287586,1.6738437,113730.0,113720.0,0.00119938]
[1754231287778,2.21975103,113730.0,113720.0,0.00119938]
[1754231287983,2.21775103,113730.0,113720.0,0.00119938]
[1754231288181,0.3524038,113700.0,113690.0,1.4902031]
[1754231288385,0.99323733,113700.0,113690.0,1.7053031]
[1754231288586,0.5821638,113700.0,113690.0,1.7053031]
[1754231288780,0.33226,113700.0,113690.0,2.0661031]
[1754231288985,0.5081638,113700.0,113690.0,1.7053031]
[1754231289184,0.5821638,113700.0,113690.0,1.7053031]
[1754231289484,1.12807113,113700.0,113690.0,1.7053031]
[1754231289688,1.16914113,113700.0,113690.0,1.7053031]
[1754231290084,1.55253486,113700.0,113690.0,1.6613241]
[1754231290686,1.55253486,113700.0,113690.0,1.6613293]
[1754231290687,1.64746359,113700.0,113690.0,1.6613293]
[1754231290881,1.64746359,113700.0,113690.0,0.6215193]
[1754231291081,1.64746359,113700.0,113690.0,0.5494693]
[1754231291276,1.64746359,113700.0,113690.0,0.05363]
[1754231291483,1.28766359,113700.0,113690.0,0.5490993]
[1754231291793,1.28766359,113700.0,113690.0,0.6251993]
[1754231291985,1.64846359,113700.0,113690.0,0.6251993]
[1754231292291,1.28766359,113700.0,113690.0,0.6251993]
[1754231292488,1.28666359,113700.0,113690.0,0.6251993]
[1754231292786,1.64846359,113700.0,113690.0,0.6251993]
[1754231293086,1.28766359,113700.0,113690.0,0.6251993]
[1754231293984,1.11175979,113700.0,113690.0,0.6251993]
[1754231294186,0.11752246,113700.0,113690.0,0.6231993]
[1754231294584,0.11952246,113700.0,113690.0,0.9869993]
[1754231294897,0.002,113700.0,113690.0,1.70881863]
[1754231295191,0.002,113700.0,113690.0,1.1629113]
[1754231295383,0.001,113700.0,113690.0,1.1599113]
[1754231295581,0.002,113700.0,113690.0,1.1659113]
[1754231295783,0.002,113700.0,113690.0,0.9899993]
[1754231296793,0.15508,113700.0,113690.0,0.9899993]
[1754231296986,0.002,113700.0,113690.0,0.9899993]
[1754231297181,0.001,113700.0,113690.0,0.9899993]
[1754231297384,0.002,113700.0,113690.0,0.9899993]
[1754231297889,0.002,113700.0,113690.0,0.9889993]
[1754231298194,0.001,113700.0,113690.0,0.9889993]
[1754231298389,0.002,113700.0,113690.0,0.9889993]
[1754231298592,0.002,113700.0,113690.0,1.53490663]
[1754231299687,0.02460861,113700.0,113690.0,1.53490663]
[1754231300786,0.20051241,113700.0,113690.0,1.53490663]
[1754231300987,0.002,113700.0,113690.0,1.53490663]
[1754231301191,0.1779038,113700.0,113690.0,1.53490663]
[1754231301390,0.002,113700.0,113690.0,1.53490663]
[1754231301584,0.002,113700.0,113690.0,0.9889993]
[1754231302895,0.002,113700.0,113690.0,1.53490663]
[1754231303394,0.002,113700.0,113690.0,0.9889993]
[1754231304090,0.002,113700.0,113690.0,1.53490663]
[1754231305189,0.02462592,113700.0,113690.0,1.53490663]
[1754231306287,0.02462592,113700.0,113690.0,1.79860663]
[1754231306690,0.02462592,113700.0,113690.0,1.97451863]
[1754231306894,1.09145266,113730.0,113720.0,0.5174329]
[1754231307200,1.37500561,113730.0,113720.0,0.5085629]
[1754231308097,1.73580561,113730.0,113720.0,0.5085629]
[1754231308292,1.37500561,113730.0,113720.0,0.5085629]
[1754231308493,1.73580561,113730.0,113720.0,0.5085629]
[1754231308894,1.37500561,113730.0,113720.0,0.5085629]
[1754231309390,1.37700561,113730.0,113720.0,0.5085629]
[1754231310095,1.37600561,113730.0,113720.0,0.5085629]
[1754231310287,1.73680561,113730.0,113720.0,0.5085629]
[1754231310487,1.37600561,113730.0,113720.0,0.5085629]
[1754231311202,1.73780561,113730.0,113720.0,0.5115629]
[1754231311701,1.37700561,113730.0,113720.0,0.5115629]
[1754231312102,1.11320441,113730.0,113720.0,0.5115629]
[1754231312300,1.28906181,113730.0,113720.0,0.5115629]
[1754231313099,1.64986181,113730.0,113720.0,0.5115629]
[1754231315396,1.28906181,113730.0,113720.0,0.5115629]
[1754231316700,1.11320441,113730.0,113720.0,0.5115629]
[1754231316907,0.10320146,113730.0,113720.0,0.8723629]
[1754231317206,0.25628146,113730.0,113720.0,0.5204329]
[1754231317402,0.46885146,113730.0,113720.0,0.8812329]
[1754231318307,0.64470886,113730.0,113720.0,0.8812329]
[1754231318508,0.64470886,113730.0,113720.0,0.5204329]
[1754231318807,0.6671781,113730.0,113720.0,0.5204329]
[1754231319602,0.6671781,113730.0,113720.0,0.5115629]
[1754231320509,1.21308543,113730.0,113720.0,0.5115629]
[1754231321810,0.6671781,113730.0,113720.0,0.5115629]
[1754231322011,1.21308543,113730.0,113720.0,0.8723629]
[1754231322909,1.03722803,113730.0,113720.0,0.8812329]
[1754231323113,0.4913207,113730.0,113720.0,0.8812329]
[1754231323311,0.49133584,113730.0,113720.0,0.8812329]
[1754231324701,0.49133584,113730.0,113720.0,0.8832329]
[1754231325113,0.49033584,113730.0,113720.0,0.8832329]
[1754231325314,0.66619334,113730.0,113720.0,0.8792329]
[1754231325607,0.66719334,113730.0,113720.0,0.8852329]
[1754231327414,0.09549584,113730.0,113720.0,0.8763629]
[1754231327611,0.09449584,113730.0,113720.0,1.42814023]
[1754231327805,0.04462584,113730.0,113720.0,1.42814023]
[1754231328007,0.02214146,113730.0,113720.0,1.42814023]
[1754231328510,0.06945146,113730.0,113720.0,1.42814023]
[1754231330812,0.04831,113730.0,113720.0,1.42814023]
[1754231331013,0.06754414,113730.0,113720.0,1.42814023]
[1754231332119,0.02023414,113730.0,113720.0,1.42814023]
[1754231332309,0.02023414,113730.0,113720.0,1.25814023]
[1754231332508,0.06754414,113730.0,113720.0,0.7122329]
[1754231332806,0.06754414,113730.0,113720.0,1.25814023]
[1754231334212,0.06754414,113730.0,113720.0,1.39318939]
[1754231334712,0.06754414,113730.0,113720.0,0.84728206]
[1754231334917,0.06754414,113730.0,113720.0,1.39318939]
[1754231341718,0.06754414,113730.0,113720.0,1.65688939]
[1754231343823,0.001,113730.0,113720.0,1.65688939]
[1754231345221,0.001,113730.0,113720.0,2.37866072]
[1754231351027,0.001,113730.0,113720.0,1.28684606]
[1754231351327,0.001,113730.0,113720.0,2.37866072]
[1754231353726,0.001,113730.0,113720.0,2.20279672]
[1754231353925,0.04882,113730.0,113720.0,2.20279672]
[1754231356831,0.04882,113730.0,113720.0,2.33915742]
[1754231357330,0.001,113730.0,113720.0,2.33915742]
[1754231357533,0.04782,113750.0,113740.0,0.456322]
[1754231357731,0.04782,113750.0,113740.0,2.06728968]
[1754231357927,0.07806,113750.0,113740.0,2.06728968]
[1754231358137,0.31935,113750.0,113740.0,2.06728968]
[1754231358533,0.33632823,113750.0,113740.0,2.06728968]
[1754231359632,0.33832823,113750.0,113740.0,2.06828968]
[1754231359835,0.06679823,113750.0,113740.0,2.33198968]
[1754231360028,0.24160823,113750.0,113740.0,2.33194968]
[1754231360231,0.45747823,113750.0,113740.0,2.33194968]
[1754231360631,0.45647823,113750.0,113740.0,2.26363692]
[1754231361631,0.45647823,113750.0,113740.0,2.26563692]
[1754231361832,0.47897177,113750.0,113740.0,2.26563692]
[1754231362235,0.45647823,113750.0,113740.0,2.26563692]
[1754231364642,1.17807965,113750.0,113740.0,1.719782]
[1754231364848,0.6540239,113750.0,113740.0,1.719782]
[1754231365159,0.44642567,113750.0,113740.0,1.768612]
[1754231366346,0.4247065,113750.0,113740.0,1.768612]
[1754231366951,0.4464259,113750.0,113740.0,1.768612]
[1754231367152,0.65252372,113750.0,113740.0,1.768612]
[1754231367350,1.27330033,113750.0,113740.0,0.27812]
[1754231367657,1.65581979,113750.0,113740.0,0.27812]
[1754231370358,1.72757537,113750.0,113740.0,0.178842]
[1754231371054,1.18180045,113750.0,113740.0,0.178842]
[1754231371251,1.72757537,113750.0,113740.0,0.178842]
[1754231371858,1.72857537,113750.0,113740.0,0.178842]
[1754231372557,1.18280045,113750.0,113740.0,0.178842]
[1754231372746,1.72857537,113750.0,113740.0,0.177842]
[1754231372947,1.18280045,113750.0,113740.0,0.177842]
[1754231373756,0.82200045,113750.0,113740.0,0.177842]
[1754231373962,0.82200045,113750.0,113740.0,0.506452]
[1754231374255,0.72527936,113750.0,113740.0,0.626112]
[1754231375361,0.72527936,113750.0,113740.0,0.577282]
[1754231377747,0.40362728,113750.0,113740.0,1.53268692]
[1754231377947,0.03919728,113750.0,113740.0,1.53268692]
[1754231378456,0.08701728,113750.0,113740.0,1.53268692]
[1754231378658,0.11725728,113750.0,113740.0,1.53268692]
[1754231378861,0.35754728,113750.0,113740.0,1.53268692]
[1754231379053,0.35854728,113750.0,113740.0,1.53368692]
[1754231379355,0.40362728,113750.0,113740.0,1.53368692]
[1754231379552,0.65352378,113750.0,113740.0,1.53368692]
[1754231379747,0.65252378,113750.0,113740.0,0.986912]
[1754231380054,0.65352378,113750.0,113740.0,0.987912]
[1754231380359,0.65352378,113750.0,113740.0,1.251612]
[1754231380862,0.65352378,113750.0,113740.0,1.249612]
[1754231381061,0.65452378,113750.0,113740.0,1.254612]
[1754231381255,0.65452378,113750.0,113740.0,1.253612]
[1754231381557,0.65452378,113750.0,113740.0,1.256612]
[1754231383059,0.65352378,113750.0,113740.0,1.253612]
[1754231383862,0.65352378,113750.0,113740.0,1.253322]
[1754231385467,0.65252378,113750.0,113740.0,1.250322]
[1754231385759,0.65352378,113750.0,113740.0,1.252322]
[1754231388157,0.65252378,113750.0,113740.0,1.250322]
[1754231388462,0.65352378,113750.0,113740.0,1.253322]
[1754231398474,0.65252378,113750.0,113740.0,1.251322]
[1754231398673,0.65352378,113750.0,113740.0,1.254322]
[1754231399674,0.65352378,113750.0,113740.0,1.80009692]
[1754231401674,0.57945378,113750.0,113740.0,1.80009692]
[1754231402174,0.40362728,113750.0,113740.0,1.80009692]
[1754231402370,0.03919728,113750.0,113740.0,1.80009692]
[1754231402773,0.21502378,113750.0,113740.0,1.80009692]
[1754231403270,0.26203378,113750.0,113740.0,1.80009692]
[1754231404576,0.03919728,113750.0,113740.0,1.80009692]
[1754231406171,0.01747782,113750.0,113740.0,1.80009692]
[1754231407573,0.03963104,113750.0,113740.0,1.80009692]
[1754231407772,0.01747782,113750.0,113740.0,1.80009692]
[1754231408271,0.001,113750.0,113740.0,1.53639692]
[1754231408577,0.6633762,113780.0,113770.0,0.3092732]
[1754231408781,0.68552894,113780.0,113770.0,1.49036812]
[1754231409083,0.15108274,113780.0,113770.0,1.49036812]
[1754231409288,0.32686294,113780.0,113770.0,1.49036812]
[1754231409475,0.64157294,113780.0,113770.0,1.49036812]
[1754231409983,0.64257294,113780.0,113770.0,1.49136812]
[1754231410179,0.67259514,113780.0,113770.0,0.9455932]
[1754231410377,0.67259514,113780.0,113770.0,1.49136812]
[1754231410982,0.67459514,113780.0,113770.0,1.49136812]
[1754231411380,0.6524424,113780.0,113770.0,1.21684812]
[1754231411683,0.6524424,113780.0,113770.0,0.9455532]
[1754231411878,0.6524424,113780.0,113770.0,0.9445532]
[1754231412074,0.6524424,113780.0,113770.0,0.9475532]
[1754231412475,0.6524424,113780.0,113770.0,1.49332812]
[1754231412775,0.6504424,113780.0,113770.0,1.49332812]
[1754231415484,0.6504424,113780.0,113770.0,0.9475532]
[1754231415683,0.6504424,113780.0,113770.0,1.49332812]
[1754231415982,0.6504424,113780.0,113770.0,0.9475532]
[1754231416380,0.6504424,113780.0,113770.0,1.49332812]
[1754231416571,0.6504424,113780.0,113770.0,0.9475532]
[1754231416773,0.4746622,113780.0,113770.0,1.49332812]
[1754231416981,0.6504424,113780.0,113770.0,1.49332812]
[1754231418281,0.6504424,113780.0,113770.0,1.21884812]
[1754231418483,0.67252643,113780.0,113770.0,1.21884812]
[1754231418682,0.67252643,113780.0,113770.0,1.48694812]
[1754231418883,0.67252643,113780.0,113770.0,0.9411732]
[1754231421479,0.67252643,113780.0,113770.0,1.76126812]
[1754231427491,0.6504424,113780.0,113770.0,1.76126812]
[1754231428993,0.67257304,113780.0,113770.0,0.9411732]
[1754231429292,0.67257304,113780.0,113770.0,1.2153732]
[1754231430591,0.67157304,113780.0,113770.0,1.2133732]
[1754231430793,1.21834796,113780.0,113770.0,0.4478801]
[1754231431091,1.31000318,113780.0,113770.0,0.7220556]
[1754231431293,0.76422826,113780.0,113770.0,0.7220556]
[1754231431484,1.31000318,113780.0,113770.0,0.7220556]
[1754231432293,1.30900318,113780.0,113770.0,0.7190556]
[1754231432492,1.31000318,113780.0,113770.0,0.7210556]
[1754231433194,1.30900318,113780.0,113770.0,0.7190556]
[1754231433393,1.31000318,113780.0,113770.0,0.7210556]
[1754231433896,1.31000318,113780.0,113770.0,0.7200556]
[1754231434197,1.30900318,113780.0,113770.0,0.4448956]
[1754231434796,1.31100318,113780.0,113770.0,0.4448956]
[1754231435794,0.13339284,113780.0,113770.0,1.49689052]
[1754231435997,0.10116284,113780.0,113770.0,1.49689052]
[1754231436398,0.10116284,113780.0,113770.0,1.23319052]